fUSD/lending_fUSD_20240327
["ID","MTS","AMOUNT","RATE_DAILY","PERIOD"]
[320802307,1711561928783,-614.46,0.0005726,120]
[320802308,1711561928794,-2989.36,0.0005726,120]
[320802309,1711561928805,-10959.62,0.0005726,120]
[320802310,1711561928816,-521.47,0.0005726,120]
[320802311,1711561928827,-2645.1,0.0005726,120]
[320802312,1711561928839,-758.38,0.0005726,120]
[320802313,1711561928851,-12744.26,0.0005726,120]
[320802314,1711561928863,-500.0,0.0005726,120]
[320802315,1711561928873,-11517.5,0.0005726,120]
[320802316,1711561928888,-2628.59,0.0005726,120]
[320802317,1711561928899,-1981.45,0.0005726,120]
[320802318,1711561928909,-500.0,0.0005726,120]
[320802319,1711561928919,-500.0,0.0005726,120]
[320802320,1711561928929,-500.0,0.0005726,120]
[320802321,1711561928939,-2618.9,0.0005726,120]
[320802322,1711561928949,-2635.65,0.0005726,120]
[320802323,1711561928960,-2440.72,0.0005726,120]
[320802324,1711561928972,-1641.2,0.0005726,120]
[320802325,1711561928982,-1422.66,0.0005726,120]
[320802326,1711561928991,-1953.26,0.0005726,120]
[320802327,1711561929002,-680.59,0.0005726,120]
[320802328,1711561929012,-500.0,0.0005726,120]
[320802329,1711561929021,-851.11,0.0005726,120]
[320802330,1711561929031,-516.23,0.0005726,120]
[320802331,1711561929040,-4524.02,0.0005726,120]
[320802332,1711561929050,-833.36,0.0005726,120]
[320802333,1711561929060,-500.0,0.0005726,120]
[320802334,1711561929070,-2147.51,0.0005726,120]
[320802335,1711561929080,-1826.97,0.0005726,120]
[320802336,1711561929090,-1200.4,0.0005726,120]
[320802337,1711561929100,-6977.94,0.0005726,120]
[320802338,1711561929109,-4994.03,0.0005726,120]
[320802339,1711561929119,-1042.58,0.0005726,120]
[320802340,1711561929130,-818.62,0.0005726,120]
[320802341,1711561929139,-1312.03,0.0005726,120]
[320802342,1711561929148,-1814.79,0.0005726,120]
[320802343,1711561929157,-500.0,0.0005726,120]
[320802344,1711561929166,-1730.09,0.0005726,120]
[320802345,1711561929176,-3092.64,0.0005726,120]
[320802346,1711561929185,-858.06,0.0005726,120]
[320802347,1711561929194,-500.0,0.0005726,120]
[320802348,1711561929204,-3331.35,0.0005726,120]
[320802349,1711561929214,-1107.56,0.0005726,120]
[320802350,1711561929225,-1629.06,0.0005726,120]
[320802351,1711561929237,-1926.96,0.0005726,120]
[320802352,1711561929247,-5998.21,0.0005726,120]
[320802353,1711561929258,-1276.61,0.0005726,120]
[320802354,1711561929268,-239.79,0.0005726,120]
[320802355,1711561929277,-978.47,0.0005726,120]
[320802356,1711561929287,-1204.74,0.0005726,120]
[320802357,1711561929297,-500.0,0.0005726,120]
[320802358,1711561929307,-500.0,0.0005726,120]
[320802359,1711561929317,-1112.11,0.0005726,120]
[320802360,1711561929326,-500.0,0.0005726,120]
[320802361,1711561929335,-5147.59,0.0005726,120]
[320802362,1711561929345,-500.0,0.0005726,120]
[320802363,1711561929355,-1278.89,0.0005726,120]
[320802364,1711561929364,-1257.45,0.0005726,120]
[320802365,1711561929375,-5642.74,0.0005726,120]
[320802366,1711561929387,-300.0,0.00057324,120]
[320802367,1711561929396,-166.56049651,0.00057342,120]
[320802368,1711561929406,-157.18743014,0.00057354,120]
[320802369,1711561929416,-152.91494694,0.00057374,120]
[320802370,1711561929425,-500.0,0.0005741,120]
[320802371,1711561929435,-500.0,0.0005741,120]
[320802372,1711561929445,-150.19866873,0.0005742,72]
[320802373,1711561929459,-1171.72699958,0.00057475,120]
[320802374,1711561929469,-154.13724489,0.00057493,120]
[320802375,1711561929479,-614.130831,0.00057498,112]
[320802376,1711561929489,-156.920962,0.00057507,120]
[320802377,1711561929499,-155.41503158,0.00057507,120]
[320802378,1711561929509,-5056.51492563,0.00057522,120]
[320802379,1711561929519,-2297.87115028,0.00057522,120]
[320802380,1711561929530,-745.54344938,0.00057522,120]
[320802381,1711561929540,-2121.19438282,0.00057522,120]
[320802382,1711561929550,-500.0,0.00057534,120]
[320802383,1711561929560,-500.0,0.00057534,120]
[320802384,1711561929571,-256.70723219,0.00057534,120]
[320802385,1711561929581,-500.0,0.00057534,120]
[320802386,1711561929590,-631.01,0.00057534,120]
[320802387,1711561929601,-500.0,0.00057534,120]
[320802388,1711561929611,-500.0,0.00057534,120]
[320802389,1711561929621,-530.38,0.00057534,120]
[320802390,1711561929632,-500.0,0.00057534,120]
[320802391,1711561929641,-500.0,0.00057534,120]
[320802392,1711561929650,-500.0,0.00057534,120]
[320802393,1711561929660,-500.0,0.00057534,120]
[320802394,1711561929670,-500.0,0.00057534,120]
[320802395,1711561929680,-517.87,0.00057534,120]
[320802396,1711561929689,-736.48,0.00057534,120]
[320802397,1711561929700,-500.0,0.00057534,120]
[320802398,1711561929710,-827.53,0.00057534,120]
[320802399,1711561929719,-827.53,0.00057534,120]
[320802400,1711561929729,-827.53,0.00057534,120]
[320802401,1711561929739,-827.53,0.00057534,120]
[320802402,1711561929750,-827.53,0.00057534,120]
[320802403,1711561929759,-500.0,0.00057534,120]
[320802404,1711561929769,-827.53,0.00057534,120]
[320802405,1711561929778,-827.53,0.00057534,120]
[320802406,1711561929788,-827.53,0.00057534,120]
[320802407,1711561929798,-827.53,0.00057534,120]
[320802408,1711561929808,-827.53,0.00057534,120]
[320802409,1711561929817,-827.53,0.00057534,120]
[320802410,1711561929828,-827.53,0.00057534,120]
[320802411,1711561929838,-827.53,0.00057534,120]
[320802412,1711561929848,-500.0,0.00057534,120]
[320802413,1711561929858,-500.0,0.00057534,120]
[320802414,1711561929872,-1149.15,0.00057534,120]
[320802415,1711561929883,-683.71,0.00057534,120]
[320802416,1711561929893,-588.63,0.00057534,120]
[320802417,1711561929904,-1653.05,0.00057534,120]
[320802418,1711561929914,-721.85,0.00057534,120]
[320802419,1711561929924,-1272.4,0.00057534,120]
[320802420,1711561929933,-1272.4,0.00057534,120]
[320802421,1711561929943,-1272.4,0.00057534,120]
[320802422,1711561929954,-1272.4,0.00057534,120]
[320802423,1711561929965,-1272.4,0.00057534,120]
[320802424,1711561929974,-1272.4,0.00057534,120]
[320802425,1711561929984,-1272.4,0.00057534,120]
[320802426,1711561929994,-1272.4,0.00057534,120]
[320802427,1711561930004,-1272.4,0.00057534,120]
[320802428,1711561930013,-1272.4,0.00057534,120]
[320802429,1711561930023,-1272.4,0.00057534,120]
[320802430,1711561930033,-1272.4,0.00057534,120]
[320802431,1711561930043,-1272.4,0.00057534,120]
[320802432,1711561930053,-758.1,0.00057534,120]
[320802433,1711561930063,-751.34,0.00057534,120]
[320802434,1711561930074,-500.0,0.00057534,120]
[320802435,1711561930084,-1106.66,0.00057534,120]
[320802436,1711561930094,-500.0,0.00057534,120]
[320802437,1711561930104,-667.72,0.00057534,120]
[320802438,1711561930115,-546.53,0.00057534,120]
[320802439,1711561930125,-525.52,0.00057534,120]
[320802440,1711561930137,-1650.28,0.00057534,120]
[320802441,1711561930148,-500.0,0.00057534,120]
[320802442,1711561930159,-1208.64,0.00057534,120]
[320802443,1711561930169,-500.0,0.00057534,120]
[320802444,1711561930181,-1675.07,0.00057534,120]
[320802445,1711561930193,-500.0,0.00057534,60]
[320802446,1711561930205,-875.05,0.00057534,120]
[320802447,1711561930216,-500.0,0.00057534,120]
[320802448,1711561930227,-896.37,0.00057534,120]
[320802449,1711561930237,-526.04,0.00057534,120]
[320802450,1711561930248,-774.53,0.00057534,120]
[320802451,1711561930259,-623.96,0.00057534,120]
[320802452,1711561930269,-1500.57,0.00057534,120]
[320802453,1711561930280,-500.0,0.00057534,120]
[320802454,1711561930291,-1293.46,0.00057534,120]
[320802455,1711561930301,-663.1,0.00057534,120]
[320802456,1711561930311,-500.0,0.00057534,120]
[320802457,1711561930326,-591.57,0.00057534,120]
[320802458,1711561930336,-540.2,0.00057534,120]
[320802459,1711561930346,-500.0,0.00057534,120]
[320802460,1711561930356,-826.04,0.00057534,120]
[320802461,1711561930366,-802.7,0.00057534,120]
[320802462,1711561930376,-551.8,0.00057534,120]
[320802463,1711561930392,-792.47,0.00057534,120]
[320802464,1711561930402,-500.0,0.00057534,120]
[320802465,1711561930412,-507.03,0.00057534,120]
[320802466,1711561930427,-814.62,0.00057534,120]
[320802467,1711561930437,-519.12,0.00057534,120]
[320802468,1711561930448,-500.0,0.00057534,120]
[320802469,1711561930458,-553.94,0.00057534,120]
[320802470,1711561930467,-1363.26,0.00057534,120]
[320802471,1711561930477,-681.15,0.00057534,120]
[320802472,1711561930486,-1247.0,0.00057534,120]
[320802473,1711561930496,-828.0,0.00057534,120]
[320802474,1711561930506,-907.95,0.00057534,120]
[320802475,1711561930516,-691.03,0.00057534,120]
[320802476,1711561930528,-500.0,0.00057534,120]
[320802477,1711561930538,-500.0,0.00057534,120]
[320802478,1711561930549,-1943.45,0.00057534,120]
[320802479,1711561930560,-1363.72,0.00057534,120]
[320802480,1711561930572,-500.0,0.00057534,120]
[320802481,1711561930582,-1264.66,0.00057534,120]
[320802482,1711561930593,-518.11,0.00057534,120]
[320802483,1711561930603,-500.0,0.00057534,120]
[320802484,1711561930614,-785.6,0.00057534,120]
[320802485,1711561930624,-500.0,0.00057534,120]
[320802486,1711561930639,-500.0,0.00057534,120]
[320802487,1711561930649,-533.96,0.00057534,120]
[320802488,1711561930659,-610.76,0.00057534,120]
[320802489,1711561930670,-500.0,0.00057534,120]
[320802490,1711561930681,-601.27,0.00057534,120]
[320802491,1711561930693,-500.0,0.00057534,120]
[320802492,1711561930704,-619.35,0.00057534,120]
[320802493,1711561930714,-723.32,0.00057534,120]
[320802494,1711561930725,-658.94,0.00057534,30]
[320802495,1711561930735,-604.53,0.00057534,120]
[320802496,1711561930746,-500.0,0.00057534,120]
[320802497,1711561930757,-627.6,0.00057534,120]
[320802498,1711561930767,-541.49,0.00057534,120]
[320802499,1711561930778,-525.41,0.00057534,120]
[320802500,1711561930788,-584.87,0.00057534,120]
[320802501,1711561930798,-1259.13,0.00057534,120]
[320802502,1711561930808,-500.0,0.00057534,120]
[320802503,1711561930818,-1285.86,0.00057534,120]
[320802504,1711561930829,-961.87,0.00057534,120]
[320802505,1711561930839,-1118.41,0.00057534,120]
[320802506,1711561930849,-500.0,0.00057534,120]
[320802507,1711561930860,-653.33,0.00057534,120]
[320802508,1711561930871,-500.0,0.00057534,120]
[320802509,1711561930884,-515.61,0.00057534,120]
[320802510,1711561930897,-500.0,0.00057534,120]
[320802511,1711561930908,-881.34,0.00057534,120]
[320802512,1711561930918,-594.96,0.00057534,120]
[320802513,1711561930929,-500.0,0.00057534,120]
[320802514,1711561930939,-635.55,0.00057534,120]
[320802515,1711561930950,-500.0,0.00057534,120]
[320802516,1711561930960,-500.0,0.00057534,120]
[320802517,1711561930970,-569.07,0.00057534,120]
[320802518,1711561930981,-513.81,0.00057534,120]
[320802519,1711561930991,-885.2,0.00057534,120]
[320802520,1711561931001,-507.05,0.00057534,120]
[320802521,1711561931012,-345.9,0.00057534,120]
[320802522,1711561931022,-500.0,0.00057534,120]
[320802523,1711561931032,-969.37,0.00057534,120]
[320802524,1711561931042,-500.0,0.00057534,120]
[320802525,1711561931053,-500.0,0.00057534,120]
[320802526,1711561931062,-712.96,0.00057534,120]
[320802527,1711561931072,-500.0,0.00057534,120]
[320802528,1711561931083,-607.67,0.00057534,120]
[320802529,1711561931092,-500.0,0.00057534,120]
[320802530,1711561931102,-500.0,0.00057534,120]
[320802531,1711561931112,-631.34,0.00057534,120]
[320802532,1711561931122,-500.0,0.00057534,120]
[320802533,1711561931134,-572.09,0.00057534,120]
[320802534,1711561931144,-633.56,0.00057534,120]
[320802535,1711561931154,-1276.08,0.00057534,120]
[320802536,1711561931164,-743.04,0.00057534,120]
[320802537,1711561931174,-994.38,0.00057534,120]
[320802538,1711561931185,-1464.37,0.00057534,120]
[320802539,1711561931195,-1308.17,0.00057534,120]
[320802540,1711561931204,-1966.83,0.00057534,120]
[320802541,1711561931215,-882.23,0.00057534,120]
[320802542,1711561931225,-1167.58,0.00057534,120]
[320802543,1711561931234,-500.0,0.00057534,120]
[320802544,1711561931244,-939.99,0.00057534,120]
[320802545,1711561931253,-1680.42,0.00057534,120]
[320802546,1711561931263,-654.45,0.00057534,120]
[320802547,1711561931273,-1090.78,0.00057534,120]
[320802548,1711561931283,-5693.99,0.00057534,120]
[320802549,1711561931293,-2767.8,0.00057534,120]
[320802550,1711561931303,-631.11,0.00057534,120]
[320802551,1711561931313,-638.94,0.00057534,120]
[320802552,1711561931323,-1880.06,0.00057534,120]
[320802553,1711561931333,-1154.81,0.00057534,120]
[320802554,1711561931343,-597.69,0.00057534,120]
[320802555,1711561931352,-3576.66,0.00057534,120]
[320802556,1711561931362,-11680.99,0.00057534,120]
[320802557,1711561931371,-500.0,0.00057534,120]
[320802558,1711561931383,-1513.74,0.00057534,120]
[320802559,1711561931393,-500.0,0.00057534,120]
[320802560,1711561931404,-500.0,0.00057534,120]
[320802561,1711561931414,-4891.01,0.00057534,120]
[320802562,1711561931424,-820.32,0.00057534,120]
[320802563,1711561931433,-2266.19,0.00057534,120]
[320802564,1711561931443,-4319.88,0.00057534,120]
[320802565,1711561931453,-638.01,0.00057534,120]
[320802566,1711561931463,-1948.43,0.00057534,120]
[320802567,1711561931473,-594.89,0.00057534,120]
[320802568,1711561931482,-58191.63,0.00057534,120]
[320802569,1711561931493,-500.0,0.00057534,120]
[320802570,1711561931503,-4872.06,0.00057534,120]
[320802571,1711561931513,-25819.15,0.00057534,120]
[320802572,1711561931522,-916.42,0.00057534,120]
[320802573,1711561931532,-672.12,0.00057534,120]
[320802574,1711561931542,-311.83384884,0.00057534,120]
[320802575,1711561931551,-500.0,0.00057534,120]
[320802576,1711561931561,-2822.64,0.00057534,120]
[320802577,1711561931570,-5739.01,0.00057534,120]
[320802578,1711561931580,-1599.36,0.00057534,120]
[320802579,1711561931589,-1773.91,0.00057534,120]
[320802580,1711561931598,-7896.21,0.00057534,120]
[320802581,1711561931608,-580.5,0.00057534,120]
[320802582,1711561931618,-500.0,0.00057534,120]
[320802583,1711561931629,-702.31,0.00057534,120]
[320802584,1711561931639,-4077.6,0.00057534,120]
[320802585,1711561931649,-962.02,0.00057534,120]
[320802586,1711561931660,-1910.86,0.00057534,120]
[320802587,1711561931670,-1981.61,0.00057534,120]
[320802588,1711561931680,-993.68,0.00057534,120]
[320802589,1711561931689,-1310.9,0.00057534,120]
[320802590,1711561931699,-5861.79,0.00057534,120]
[320802591,1711561931709,-861.74,0.00057534,120]
[320802592,1711561931719,-3868.28,0.00057534,120]
[320802593,1711561931905,-4602.46,0.00057534,120]
[320802594,1711561931922,-2663.41,0.00057534,120]
[320802595,1711561931936,-2285.5,0.00057534,120]
[320802596,1711561931945,-7201.79,0.00057534,120]
[320802597,1711561931955,-1041.92,0.00057534,120]
[320802598,1711561931965,-500.0,0.00057534,120]
[320802599,1711561931974,-2054.16,0.00057534,120]
[320802600,1711561931983,-1431.94,0.00057534,120]
[320802601,1711561931993,-18909.02,0.00057534,120]
[320802602,1711561932003,-1528.43,0.00057534,120]
[320802603,1711561932013,-1715.09,0.00057534,120]
[320802604,1711561932022,-543.42,0.00057534,120]
[320802605,1711561932032,-836.18,0.00057534,120]
[320802606,1711561932041,-2529.3,0.00057534,120]
[320802607,1711561932051,-1204.05,0.00057534,120]
[320802608,1711561932060,-500.0,0.00057534,120]
[320802609,1711561932070,-882.15,0.00057534,120]
[320802610,1711561932079,-1890.07,0.00057534,120]
[320802611,1711561932089,-1395.77,0.00057534,120]
[320802612,1711561932099,-500.0,0.00057534,120]
[320802613,1711561932108,-22066.4,0.00057534,120]
[320802614,1711561932117,-9133.29,0.00057534,120]
[320802615,1711561932126,-3276.54,0.00057534,120]
[320802616,1711561932138,-3779.21,0.00057534,120]
[320802617,1711561932148,-505.39,0.00057534,120]
[320802618,1711561932157,-1407.53,0.00057534,120]
[320802619,1711561932167,-1780.21,0.00057534,120]
[320802620,1711561932176,-744.71,0.00057534,120]
[320802621,1711561932185,-3375.62,0.00057534,120]
[320802622,1711561932195,-500.0,0.00057534,120]
[320802623,1711561932205,-1245.33,0.00057534,120]
[320802624,1711561932214,-825.22,0.00057534,120]
[320802625,1711561932223,-2499.0,0.00057534,120]
[320802626,1711561932232,-1139.82,0.00057534,120]
[320802627,1711561932241,-3390.46,0.00057534,120]
[320802628,1711561932251,-2297.82,0.00057534,120]
[320802629,1711561932260,-36215.98,0.00057534,120]
[320802630,1711561932269,-2115.9,0.00057534,120]
[320802631,1711561932278,-504.0,0.00057534,120]
[320802632,1711561932288,-500.0,0.00057534,120]
[320802633,1711561932298,-635.43,0.00057534,120]
[320802634,1711561932307,-509.72,0.00057534,7]
[320802635,1711561932316,-1985.21,0.00057534,120]
[320802636,1711561932325,-4093.44,0.00057534,120]
[320802637,1711561932335,-598.33,0.00057534,120]
[320802638,1711561932344,-3703.02,0.00057534,120]
[320802639,1711561932353,-3170.6,0.00057534,120]
[320802640,1711561932363,-4518.78,0.00057534,120]
[320802641,1711561932372,-666.0,0.00057534,120]
[320802642,1711561932384,-816.34,0.00057534,120]
[320802643,1711561932393,-550.58,0.00057534,120]
[320802644,1711561932403,-500.0,0.00057534,120]
[320802645,1711561932413,-5597.96,0.00057534,120]
[320802646,1711561932422,-3365.42,0.00057534,120]
[320802647,1711561932432,-1850.45,0.00057534,120]
[320802648,1711561932441,-500.0,0.00057534,120]
[320802649,1711561932451,-543.16,0.00057534,120]
[320802650,1711561932461,-1437.25,0.00057534,120]
[320802651,1711561932470,-500.0,0.00057534,120]
[320802652,1711561932479,-13261.96,0.00057534,120]
[320802653,1711561932489,-2460.7,0.00057534,120]
[320802654,1711561932497,-688.55,0.00057534,120]
[320802655,1711561932507,-1308.22,0.00057534,120]
[320802656,1711561932516,-1655.41,0.00057534,120]
[320802657,1711561932526,-500.0,0.00057534,120]
[320802658,1711561932537,-606.26,0.00057534,120]
[320802659,1711561932546,-3292.56,0.00057534,120]
[320802660,1711561932555,-4771.81,0.00057534,120]
[320802661,1711561932565,-2911.12,0.00057534,120]
[320802662,1711561932574,-1591.58,0.00057534,120]
[320802663,1711561932583,-8314.67,0.00057534,21]
[320802664,1711561932593,-515.6,0.00057534,120]
[320802665,1711561932603,-1246.89,0.00057534,120]
[320802666,1711561932613,-1689.16,0.00057534,120]
[320802667,1711561932622,-500.0,0.00057534,120]
[320802668,1711561932634,-770.25,0.00057534,120]
[320802669,1711561932643,-8380.88,0.00057534,120]
[320802670,1711561932653,-614.46,0.00057534,120]
[320802671,1711561932663,-2989.36,0.00057534,120]
[320802672,1711561932673,-10959.62,0.00057534,120]
[320802673,1711561932682,-521.47,0.00057534,120]
[320802674,1711561932693,-2645.1,0.00057534,120]
[320802675,1711561932702,-758.38,0.00057534,120]
[320802676,1711561932712,-12744.26,0.00057534,120]
[320802677,1711561932721,-500.0,0.00057534,120]
[320802678,1711561932731,-11517.5,0.00057534,120]
[320802679,1711561932741,-2628.59,0.00057534,120]
[320802680,1711561932750,-1981.45,0.00057534,120]
[320802681,1711561932759,-500.0,0.00057534,120]
[320802682,1711561932768,-500.0,0.00057534,120]
[320802683,1711561932777,-500.0,0.00057534,120]
[320802684,1711561932786,-2618.9,0.00057534,120]
[320802685,1711561932796,-2635.65,0.00057534,120]
[320802686,1711561932806,-2440.72,0.00057534,120]
[320802687,1711561932815,-1641.2,0.00057534,120]
[320802688,1711561932824,-1422.66,0.00057534,120]
[320802689,1711561932833,-1953.26,0.00057534,120]
[320802690,1711561932843,-680.59,0.00057534,120]
[320802691,1711561932852,-500.0,0.00057534,120]
[320802692,1711561932862,-851.11,0.00057534,120]
[320802693,1711561932872,-516.23,0.00057534,120]
[320802694,1711561932884,-4524.02,0.00057534,120]
[320802695,1711561932896,-833.36,0.00057534,120]
[320802696,1711561932905,-500.0,0.00057534,120]
[320802697,1711561932915,-2147.51,0.00057534,120]
[320802698,1711561932925,-1826.97,0.00057534,120]
[320802699,1711561932935,-1200.4,0.00057534,120]
[320802700,1711561932944,-6977.94,0.00057534,120]
[320802701,1711561932954,-4994.03,0.00057534,120]
[320802702,1711561932963,-1042.58,0.00057534,120]
[320802703,1711561932972,-818.62,0.00057534,120]
[320802704,1711561932982,-1312.03,0.00057534,120]
[320802705,1711561932990,-1814.79,0.00057534,120]
[320802706,1711561933000,-1730.09,0.00057534,120]
[320802707,1711561933010,-500.0,0.00057534,120]
[320802708,1711561933019,-3092.64,0.00057534,120]
[320802709,1711561933028,-858.06,0.00057534,120]
[320802710,1711561933037,-500.0,0.00057534,120]
[320802711,1711561933046,-3331.35,0.00057534,120]
[320802712,1711561933055,-1107.56,0.00057534,120]
[320802713,1711561933065,-1629.06,0.00057534,120]
[320802714,1711561933075,-1926.96,0.00057534,120]
[320802715,1711561933085,-5998.21,0.00057534,120]
[320802716,1711561933095,-1276.61,0.00057534,120]
[320802717,1711561933104,-978.47,0.00057534,120]
[320802718,1711561933113,-1204.74,0.00057534,120]
[320802719,1711561933123,-500.0,0.00057534,120]
[320802720,1711561933133,-500.0,0.00057534,120]
[320802721,1711561933142,-1112.11,0.00057534,120]
[320802722,1711561933151,-500.0,0.00057534,120]
[320802723,1711561933161,-5147.59,0.00057534,120]
[320802724,1711561933170,-1278.89,0.00057534,120]
[320802725,1711561933179,-1257.45,0.00057534,120]
[320802726,1711561933189,-5642.74,0.00057534,120]
[320802727,1711561933198,-153.33171327,0.00057545,120]
[320802728,1711561933207,-318.86786748,0.00057561,120]
[320802729,1711561933216,-150.0,0.000576,13]
[320802730,1711561933225,-155.05030773,0.00057609,120]
[320802731,1711561933235,-6918.19871397,0.00057637,2]
[320802732,1711561933245,-200.0,0.00057659,120]
[320802733,1711561933254,-157.20206273,0.00057668,120]
[320802734,1711561933264,-500.0,0.00057683,120]
[320802735,1711561933273,-500.0,0.00057683,120]
[320802736,1711561933282,-327.0,0.00057699,30]
[320802737,1711561933292,-415.0,0.00057699,30]
[320802738,1711561933301,-1125.304,0.00057709,120]
[320802739,1711561933310,-1267.0,0.00057709,120]
[320802740,1711561933319,-396.0,0.00057709,120]
[320802741,1711561933328,-213.0,0.00057709,2]
[320802742,1711561933338,-1176.0,0.00057709,120]
[320802743,1711561933348,-154.75091202,0.00057717,120]
[320802744,1711561933357,-152.91494694,0.00057731,120]
[320802745,1711561933366,-270.3407912,0.00057768,2]
[320802746,1711561933375,-4027.8213591,0.00057768,2]
[320802747,1711561933386,-154.1293337,0.00057781,120]
[320802748,1711561933395,-154.13724489,0.00057786,120]
[320802749,1711561933404,-3836.719838,0.00057796,30]
[320802750,1711561933414,-4795.899798,0.00057796,30]
[320802751,1711561933423,-959.179959,0.00057796,30]
[320802752,1711561933433,-959.17996,0.00057796,30]
[320802753,1711561933445,-959.179959,0.00057796,30]
[320802754,1711561933454,-2302.031903,0.00057796,30]
[320802755,1711561933464,-2302.031903,0.00057796,30]
[320802756,1711561933474,-2302.031903,0.00057796,30]
[320802757,1711561933484,-3917.009776,0.00057796,30]
[320802758,1711561933493,-647.989933,0.00057796,30]
[320802759,1711561933503,-1156.819569,0.00057796,30]
[320802760,1711561933512,-453.098121,0.00057798,100]
[320802761,1711561933522,-302.065416,0.00057798,113]
[320802762,1711561933533,-9734.91114828,0.000578,60]
[320802763,1711561933543,-268.379999,0.000578,120]
[320802764,1711561933553,-150.0,0.000578,37]
[320802765,1711561933563,-945.0,0.000578,37]
[320802766,1711561933573,-200.000001,0.000578,37]
[320802767,1711561933583,-1000.0,0.00057807,90]
[320802768,1711561933592,-500.0,0.00057808,120]
[320802769,1711561933602,-500.0,0.00057808,120]
[320802770,1711561933611,-500.0,0.00057808,120]
[320802771,1711561933620,-631.01,0.00057808,120]
[320802772,1711561933631,-500.0,0.00057808,120]
[320802773,1711561933640,-500.0,0.00057808,120]
[320802774,1711561933650,-530.38,0.00057808,120]
[320802775,1711561933659,-470.85,0.00057808,120]
[320802776,1711561933668,-500.0,0.00057808,120]
[320802777,1711561933678,-500.0,0.00057808,120]
[320802778,1711561933687,-500.0,0.00057808,120]
[320802779,1711561933697,-500.0,0.00057808,120]
[320802780,1711561933707,-517.87,0.00057808,120]
[320802781,1711561933720,-736.48,0.00057808,120]
[320802782,1711561933730,-500.0,0.00057808,120]
[320802783,1711561933740,-500.0,0.00057808,120]
[320802784,1711561933751,-827.53,0.00057808,120]
[320802785,1711561933761,-500.0,0.00057808,120]
[320802786,1711561933771,-500.0,0.00057808,120]
[320802787,1711561933782,-1149.15,0.00057808,120]
[320802788,1711561933792,-683.71,0.00057808,120]
[320802789,1711561933802,-588.63,0.00057808,120]
[320802790,1711561933812,-1653.05,0.00057808,120]
[320802791,1711561933822,-721.85,0.00057808,120]
[320802792,1711561933832,-1272.4,0.00057808,120]
[320802793,1711561933841,-758.1,0.00057808,120]
[320802794,1711561933851,-751.34,0.00057808,120]
[320802795,1711561933860,-500.0,0.00057808,120]
[320802796,1711561933874,-1106.66,0.00057808,120]
[320802797,1711561933886,-667.72,0.00057808,120]
[320802798,1711561933896,-500.0,0.00057808,120]
[320802799,1711561933906,-546.53,0.00057808,120]
[320802800,1711561933917,-525.52,0.00057808,120]
[320802801,1711561933927,-1650.28,0.00057808,120]
[320802802,1711561933937,-500.0,0.00057808,120]
[320802803,1711561933947,-1208.64,0.00057808,120]
[320802804,1711561933957,-373.51609707,0.00057808,120]
[320802805,1711561933967,-1675.07,0.00057808,120]
[320802806,1711561933977,-500.0,0.00057808,60]